fUST/lending_fUST_20260530
["ID","MTS","AMOUNT","RATE_DAILY","PERIOD"]
[423411363,1780089046000,-255.252358,0.00023444,2]
[423411359,1780089046000,-85.78544582,0.00023444,2]
[423411362,1780089046000,-151.0,0.00023444,2]
[423411365,1780089046000,-199.608469,0.00023444,2]
[423411368,1780089046000,-199.608469,0.00023444,2]
[423411364,1780089046000,-199.608469,0.00023444,2]
[423411369,1780089046000,-151.0,0.00023444,2]
[423411371,1780089046000,-451.806994,0.00023444,2]
[423411374,1780089046000,-451.806994,0.00023444,2]
[423411370,1780089046000,-151.0,0.00023444,2]
[423411367,1780089046000,-199.608469,0.00023444,2]
[423411533,1780089739000,40692.52439858,7.6e-05,2]
[423411539,1780089856000,284.71455443,0.00020547,120]
[423411626,1780090231000,-963.34311521,9.032e-05,2]
[423411629,1780090231000,-4036.65688479,9.032e-05,2]
[423411630,1780090231000,-1297.4325772,9.123e-05,2]
[423411632,1780090231000,-300.0,9.299e-05,2]
[423411634,1780090231000,-1200.0,9.299e-05,2]
[423411636,1780090231000,-500.0,9.3e-05,2]
[423411654,1780090231000,-500.0,9.3e-05,2]
[423411640,1780090231000,-500.0,9.3e-05,2]
[423411644,1780090231000,-500.0,9.3e-05,2]
[423411638,1780090231000,-500.0,9.3e-05,2]
[423411652,1780090231000,-500.0,9.3e-05,2]
[423411648,1780090231000,-500.0,9.3e-05,2]
[423411650,1780090231000,-500.0,9.3e-05,2]
[423411658,1780090231000,-500.0,9.3e-05,2]
[423411656,1780090231000,-500.0,9.3e-05,2]
[423411642,1780090231000,-500.0,9.3e-05,2]
[423411662,1780090232000,-500.0,9.3e-05,2]
[423411666,1780090232000,-500.0,9.3e-05,2]
[423411668,1780090232000,-134.17036177,9.3e-05,2]
[423411664,1780090232000,-500.0,9.3e-05,2]
[423411660,1780090232000,-500.0,9.3e-05,2]
[423411786,1780090238000,-300.0,9.486e-05,2]
[423411787,1780090238000,-500.0,9.574e-05,2]
[423411799,1780090238000,-204.0,0.00013078,2]
[423411776,1780090238000,-300.0,9.486e-05,2]
[423411782,1780090238000,-300.0,9.486e-05,2]
[423411785,1780090238000,-300.0,9.486e-05,2]
[423411779,1780090238000,-300.0,9.486e-05,2]
[423411784,1780090238000,-300.0,9.486e-05,2]
[423411789,1780090238000,-500.0,9.574e-05,2]
[423411794,1780090238000,-14333.10595732,0.0001,2]
[423411788,1780090238000,-500.0,9.574e-05,2]
[423411795,1780090238000,-678.0634991,0.0001,2]
[423411793,1780090238000,-1000.0,0.0001,2]
[423411777,1780090238000,-300.0,9.486e-05,2]
[423411792,1780090238000,-2141.82604331,0.0001,2]
[423411790,1780090238000,-500.0,9.574e-05,2]
[423411796,1780090238000,-342.1367842,0.0001,2]
[423411791,1780090238000,-500.0,9.574e-05,2]
[423411780,1780090238000,-300.0,9.486e-05,2]
[423411783,1780090238000,-300.0,9.486e-05,2]
[423411774,1780090238000,-300.0,9.486e-05,2]
[423411760,1780090238000,-365.82963823,9.3e-05,2]
[423411761,1780090238000,-132.09950401,9.3e-05,2]
[423411762,1780090238000,-367.90049599,9.3e-05,2]
[423411768,1780090238000,-500.0,9.3e-05,2]
[423411764,1780090238000,-500.0,9.3e-05,2]
[423411766,1780090238000,-151.32914286,9.3e-05,2]
[423411770,1780090238000,-500.0,9.3e-05,2]
[423411773,1780090238000,-300.0,9.486e-05,2]
[423411769,1780090238000,-161.32342463,9.3e-05,2]
[423411765,1780090238000,-500.0,9.3e-05,2]
[423411763,1780090238000,-500.0,9.3e-05,2]
[423411772,1780090238000,-300.0,9.486e-05,2]
[423411775,1780090238000,-300.0,9.486e-05,2]
[423411778,1780090238000,-300.0,9.486e-05,2]
[423411781,1780090238000,-300.0,9.486e-05,2]
[423411771,1780090238000,-500.0,9.301e-05,2]
[423411767,1780090238000,-500.0,9.3e-05,2]
[423411798,1780090238000,-177.0,0.00011078,2]
[423411823,1780090238000,-820.45773248,0.00018796,2]
[423411812,1780090238000,-820.45773248,0.00018796,2]
[423411797,1780090238000,-168.09172587,0.0001,2]
[423411824,1780090238000,-820.45773248,0.00018796,2]
[423411825,1780090238000,-820.45773248,0.00018796,2]
[423411826,1780090238000,-820.45773248,0.00018796,2]
[423411827,1780090238000,-886.09435107,0.00018796,2]
[423411833,1780090238000,-886.09435107,0.00018796,2]
[423411828,1780090238000,-886.09435107,0.00018796,2]
[423411820,1780090238000,-820.45773248,0.00018796,2]
[423411830,1780090238000,-886.09435107,0.00018796,2]
[423411834,1780090238000,-886.09435107,0.00018796,2]
[423411832,1780090238000,-886.09435107,0.00018796,2]
[423411829,1780090238000,-886.09435107,0.00018796,2]
[423411836,1780090238000,-7246.02901903,0.00018799,2]
[423411837,1780090238000,-42513.44232883,0.00018799,2]
[423411835,1780090238000,-886.09435107,0.00018796,2]
[423411838,1780090238000,-1381578.57247873,0.00018799,2]
[423411831,1780090238000,-886.09435107,0.00018796,2]
[423411814,1780090238000,-820.45773248,0.00018796,2]
[423411821,1780090238000,-820.45773248,0.00018796,2]
[423411819,1780090238000,-820.45773248,0.00018796,2]
[423411809,1780090238000,-168.09172587,0.00017708,2]
[423411800,1780090238000,-2345.16667164,0.00014175,2]
[423411808,1780090238000,-492.757,0.00017305,2]
[423411803,1780090238000,-172.70787,0.00015322,2]
[423411807,1780090238000,-258.0,0.00017078,2]
[423411822,1780090238000,-820.45773248,0.00018796,2]
[423411801,1780090238000,-231.0,0.00015078,2]
[423411806,1780090238000,-443.0,0.00016772,2]
[423411805,1780090238000,-185.0,0.00016772,2]
[423411804,1780090238000,-254.63740836,0.00016672,2]
[423411811,1780090238000,-492.43905751,0.00018796,2]
[423411810,1780090238000,-254.63740836,0.00017785,2]
[423411817,1780090238000,-820.45773248,0.00018796,2]
[423411816,1780090238000,-820.45773248,0.00018796,2]
[423411813,1780090238000,-820.45773248,0.00018796,2]
[423411815,1780090238000,-820.45773248,0.00018796,2]
[423411818,1780090238000,-820.45773248,0.00018796,2]
[423411802,1780090238000,-160.0,0.00015127,2]
[423411851,1780090243000,-1779.32204679,0.00018799,2]
[423411875,1780090246000,-9285.99918472,0.00018799,2]
[423411874,1780090246000,-427.89276857,0.00018799,2]
[423411873,1780090246000,-1534.92175988,0.00018611,2]
[423411924,1780090354000,8216.91059003,0.00018628,120]
[423412056,1780091432000,-900.0,8.411e-05,2]
[423412058,1780091432000,-4100.0,8.411e-05,2]
[423412066,1780091432000,-482.57914988,8.496e-05,2]
[423412060,1780091432000,-1914.38739228,8.496e-05,2]
[423412074,1780091432000,-423.92082829,8.496e-05,2]
[423412369,1780091438000,-483.6094447,0.00012771,2]
[423412370,1780091438000,-500.0,0.00012771,2]
[423412365,1780091438000,-500.0,0.00012771,2]
[423412363,1780091438000,-500.0,0.00012771,2]
[423412372,1780091438000,-526.9265703,0.00012771,2]
[423412373,1780091438000,-500.0,0.00012771,2]
[423412362,1780091438000,-500.0,0.00012771,2]
[423412359,1780091438000,-500.0,0.00012771,2]
[423412357,1780091438000,-500.0,0.00012771,2]
[423412358,1780091438000,-500.0,0.00012771,2]
[423412356,1780091438000,-500.0,0.00012771,2]
[423412353,1780091438000,-500.0,9.3e-05,2]
[423412360,1780091438000,-500.0,0.00012771,2]
[423412352,1780091438000,-500.0,9.3e-05,2]
[423412350,1780091438000,-500.0,9.3e-05,2]
[423412354,1780091438000,-500.0,9.3e-05,2]
[423412351,1780091438000,-500.0,9.3e-05,2]
[423412349,1780091438000,-344.5,9.3e-05,2]
[423412348,1780091438000,-500.0,9.3e-05,2]
[423412346,1780091438000,-500.0,9.3e-05,2]
[423412347,1780091438000,-500.0,9.3e-05,2]
[423412345,1780091438000,-728.23340863,8.496e-05,2]
[423412344,1780091438000,-1450.87922092,8.496e-05,2]
[423412366,1780091438000,-500.0,0.00012771,2]
[423412364,1780091438000,-559.03744938,0.00012771,2]
[423412355,1780091438000,-177.0,0.00010801,2]
[423412361,1780091438000,-500.0,0.00012771,2]
[423412396,1780091438000,-500.0,0.00012773,2]
[423412368,1780091438000,-431.1988376,0.00012771,2]
[423412392,1780091438000,-500.0,0.00012771,2]
[423412394,1780091438000,-499.99999999,0.00012771,2]
[423412393,1780091438000,-500.0,0.00012771,2]
[423412391,1780091438000,-500.0,0.00012771,2]
[423412388,1780091438000,-500.0,0.00012771,2]
[423412390,1780091438000,-500.0,0.00012771,2]
[423412389,1780091438000,-500.0,0.00012771,2]
[423412387,1780091438000,-500.0,0.00012771,2]
[423412386,1780091438000,-500.0,0.00012771,2]
[423412384,1780091438000,-500.0,0.00012771,2]
[423412385,1780091438000,-500.0,0.00012771,2]
[423412395,1780091438000,-500.0,0.00012773,2]
[423412383,1780091438000,-500.0,0.00012771,2]
[423412381,1780091438000,-500.0,0.00012771,2]
[423412371,1780091438000,-530.70117738,0.00012771,2]
[423412374,1780091438000,-500.0,0.00012771,2]
[423412375,1780091438000,-500.0,0.00012771,2]
[423412377,1780091438000,-500.0,0.00012771,2]
[423412367,1780091438000,-500.0,0.00012771,2]
[423412379,1780091438000,-500.0,0.00012771,2]
[423412378,1780091438000,-500.0,0.00012771,2]
[423412380,1780091438000,-500.0,0.00012771,2]
[423412382,1780091438000,-500.0,0.00012771,2]
[423412376,1780091438000,-500.0,0.00012771,2]
[423412407,1780091439000,-176.660717,0.00013137,2]
[423412412,1780091439000,-617.64058101,0.00014073,2]
[423412424,1780091439000,-617.64058101,0.00014073,2]
[423412414,1780091439000,-617.64058101,0.00014073,2]
[423412416,1780091439000,-617.64058101,0.00014073,2]
[423412417,1780091439000,-617.64058101,0.00014073,2]
[423412423,1780091439000,-617.64058101,0.00014073,2]
[423412418,1780091439000,-617.64058101,0.00014073,2]
[423412413,1780091439000,-617.64058101,0.00014073,2]
[423412406,1780091439000,-204.0,0.00012801,2]
[423412408,1780091439000,-6356.0,0.00014073,2]
[423412400,1780091439000,-500.0,0.00012773,2]
[423412405,1780091439000,-14548.3099154,0.00012774,2]
[423412404,1780091439000,-157.3483903,0.00012774,2]
[423412411,1780091439000,-617.64058101,0.00014073,2]
[423412402,1780091439000,-573.19801109,0.00012773,2]
[423412403,1780091439000,-4868.1385345,0.00012774,2]
[423412401,1780091439000,-500.0,0.00012773,2]
[423412399,1780091439000,-500.0,0.00012773,2]
[423412410,1780091439000,-344.70734026,0.00014073,2]
[423412397,1780091439000,-500.0,0.00012773,2]
[423412398,1780091439000,-500.0,0.00012773,2]
[423412415,1780091439000,-617.64058101,0.00014073,2]
[423412409,1780091439000,-617.64058101,0.00014073,2]
[423412421,1780091439000,-617.64058101,0.00014073,2]
[423412438,1780091439000,-622.58170565,0.00014073,2]
[423412420,1780091439000,-617.64058101,0.00014073,2]
[423412448,1780091439000,-5000.0,0.00014075,2]
[423412447,1780091439000,-11350.50511955,0.00014075,2]
[423412443,1780091439000,-1577.19735962,0.00014075,2]
[423412440,1780091439000,-622.58170565,0.00014073,2]
[423412441,1780091439000,-622.58170565,0.00014073,2]
[423412446,1780091439000,-19567.79629997,0.00014075,2]
[423412442,1780091439000,-622.58170565,0.00014073,2]
[423412439,1780091439000,-622.58170565,0.00014073,2]
[423412419,1780091439000,-617.64058101,0.00014073,2]
[423412444,1780091439000,-330965.80991137,0.00014075,2]
[423412437,1780091439000,-648.52261006,0.00014073,2]
[423412428,1780091439000,-648.52261006,0.00014073,2]
[423412445,1780091439000,-1284375.81898764,0.00014075,2]
[423412431,1780091439000,-648.52261006,0.00014073,2]
[423412422,1780091439000,-617.64058101,0.00014073,2]
[423412435,1780091439000,-648.52261006,0.00014073,2]
[423412430,1780091439000,-648.52261006,0.00014073,2]
[423412425,1780091439000,-617.64058101,0.00014073,2]
[423412427,1780091439000,-648.52261006,0.00014073,2]
[423412434,1780091439000,-648.52261006,0.00014073,2]
[423412432,1780091439000,-648.52261006,0.00014073,2]
[423412426,1780091439000,-648.52261006,0.00014073,2]
[423412433,1780091439000,-648.52261006,0.00014073,2]
[423412429,1780091439000,-648.52261006,0.00014073,2]
[423412436,1780091439000,-648.52261006,0.00014073,2]
[423412451,1780091440000,-15619.67238213,0.00014075,2]
[423412452,1780091440000,-469.07870949,0.00014075,2]
[423412466,1780091443000,-9115.6557,0.00014075,2]
[423412477,1780091446000,-6624.76724151,0.00014275,2]
[423412475,1780091446000,-23535.66288985,0.00014075,2]
[423412478,1780091446000,-6624.76724159,0.00014375,2]
[423412476,1780091446000,-6624.76724151,0.00014175,2]
[423412479,1780091446000,-4220.38878628,0.00014575,2]
[423412481,1780091446000,-569.43966241,0.00014575,2]
[423412482,1780091446000,-207.9998692,0.00014725,2]
[423412483,1780091446000,-231.0,0.00014801,2]
[423412484,1780091446000,-1632.45415087,0.00016441,62]
[423412485,1780091446000,-862.38400326,0.00016441,62]
[423412480,1780091446000,-1844.3,0.00014575,2]
[423412500,1780092091000,-5000.0,0.00011693,2]
[423412501,1780092107000,-1997.53551214,0.00011811,2]
[423412503,1780092124000,-1289.72133913,0.00011693,2]
[423412504,1780092141000,-3002.46448786,0.00011811,2]
[423412505,1780092158000,-3995.07102428,0.00011811,2]
[423412507,1780092174000,-3002.46448786,0.00011423,2]
[423413793,1780092459000,289.0,0.0002,120]
[423414052,1780092609000,178.0,0.00019285,120]
[423414053,1780092611000,178.0,0.00020249,120]
[423414077,1780092633000,-335.71330759,0.00012398,2]
[423414072,1780092633000,-500.0,0.00012398,2]
[423414080,1780092633000,-475.45191155,0.00012398,2]
[423414079,1780092633000,-500.0,0.00012398,2]
[423414078,1780092633000,-185.58313279,0.00012398,2]
[423414082,1780092633000,-500.0,0.00012398,2]
[423414091,1780092633000,-146.091933,0.00012398,2]
[423414083,1780092633000,-500.0,0.00012398,2]
[423414086,1780092633000,-500.0,0.00012398,2]
[423414087,1780092633000,-500.0,0.00012398,2]
[423414090,1780092633000,-353.908067,0.00012398,2]
[423414084,1780092633000,-500.0,0.00012398,2]
[423414075,1780092633000,-500.0,0.00012398,2]
[423414085,1780092633000,-500.0,0.00012398,2]
[423414081,1780092633000,-500.0,0.00012398,2]
[423414076,1780092633000,-500.0,0.00012398,2]
[423414069,1780092633000,-447.75852446,0.0001193,2]
[423414073,1780092633000,-500.0,0.00012398,2]
[423414057,1780092633000,-1045.8101247,0.00011196,2]
[423414060,1780092633000,-1200.0,0.00011926,2]
[423414059,1780092633000,-2441.43737584,0.00011423,2]
[423414058,1780092633000,-2999.39014507,0.00011196,2]
[423414061,1780092633000,-300.0,0.00011927,2]
[423414064,1780092633000,-300.0,0.00011927,2]
[423414074,1780092633000,-500.0,0.00012398,2]
[423414063,1780092633000,-300.0,0.00011927,2]
[423414089,1780092633000,-500.0,0.00012398,2]
[423414066,1780092633000,-500.0,0.0001193,2]
[423414068,1780092633000,-500.0,0.0001193,2]
[423414062,1780092633000,-300.0,0.00011927,2]
[423414070,1780092633000,-168.09172587,0.00012298,2]
[423414071,1780092633000,-500.0,0.00012398,2]
[423414067,1780092633000,-500.0,0.0001193,2]
[423414088,1780092633000,-500.0,0.00012398,2]
[423414065,1780092633000,-1120.0,0.00011928,2]
[423414092,1780092633000,-500.0,0.00012398,2]
[423414117,1780092633000,-500.0,0.00012398,2]
[423414115,1780092633000,-500.0,0.00012398,2]
[423414119,1780092633000,-500.0,0.00012398,2]
[423414114,1780092633000,-500.0,0.00012398,2]
[423414118,1780092633000,-161.23234599,0.00012398,2]
[423414116,1780092633000,-500.0,0.00012398,2]
[423414112,1780092633000,-500.0,0.00012398,2]
[423414111,1780092633000,-500.0,0.00012398,2]
[423414093,1780092633000,-500.0,0.00012398,2]
[423414122,1780092633000,-500.0,0.00012398,2]
[423414125,1780092633000,-500.0,0.00012398,2]
[423414124,1780092633000,-500.0,0.00012398,2]
[423414126,1780092633000,-500.0,0.00012398,2]
[423414123,1780092633000,-500.0,0.00012398,2]
[423414120,1780092633000,-500.0,0.00012398,2]
[423414113,1780092633000,-500.0,0.00012398,2]
[423414121,1780092633000,-500.0,0.00012398,2]
[423414105,1780092633000,-500.0,0.00012398,2]
[423414110,1780092633000,-500.0,0.00012398,2]
[423414095,1780092633000,-500.0,0.00012398,2]
[423414094,1780092633000,-500.0,0.00012398,2]
[423414098,1780092633000,-500.0,0.00012398,2]
[423414097,1780092633000,-500.0,0.00012398,2]
[423414099,1780092633000,-500.0,0.00012398,2]
[423414101,1780092633000,-500.0,0.00012398,2]
[423414096,1780092633000,-500.0,0.00012398,2]
[423414102,1780092633000,-500.0,0.00012398,2]
[423414104,1780092633000,-500.0,0.00012398,2]
[423414103,1780092633000,-500.0,0.00012398,2]
[423414107,1780092633000,-500.0,0.00012398,2]
[423414109,1780092633000,-500.0,0.00012398,2]
[423414108,1780092633000,-500.0,0.00012398,2]
[423414100,1780092633000,-516.03789573,0.00012398,2]
[423414106,1780092633000,-500.0,0.00012398,2]
[423414140,1780092634000,-500.0,0.00012398,2]
[423414141,1780092634000,-347.86915654,0.00012398,2]
[423414137,1780092634000,-500.0,0.00012398,2]
[423414145,1780092634000,-500.0,0.00012398,2]
[423414143,1780092634000,-500.0,0.00012398,2]
[423414146,1780092634000,-500.0,0.00012398,2]
[423414148,1780092634000,-500.0,0.00012398,2]
[423414135,1780092634000,-500.0,0.00012398,2]
[423414144,1780092634000,-500.0,0.00012398,2]
[423414134,1780092634000,-500.0,0.00012398,2]
[423414129,1780092634000,-500.0,0.00012398,2]
[423414136,1780092634000,-634.09715934,0.00012398,2]
[423414139,1780092634000,-500.0,0.00012398,2]
[423414133,1780092634000,-500.0,0.00012398,2]
[423414131,1780092634000,-500.0,0.00012398,2]
[423414142,1780092634000,-500.0,0.00012398,2]
[423414132,1780092634000,-500.0,0.00012398,2]
[423414128,1780092634000,-500.0,0.00012398,2]
[423414127,1780092634000,-500.0,0.00012398,2]
[423414130,1780092634000,-500.0,0.00012398,2]
[423414154,1780092634000,-500.0,0.00012399,2]
[423414138,1780092634000,-500.0,0.00012398,2]
[423414147,1780092634000,-500.0,0.00012398,2]
[423414167,1780092634000,-2391.10687477,0.00012437,2]
[423414151,1780092634000,-250.0,0.00012398,2]
[423414149,1780092634000,-500.0,0.00012398,2]
[423414172,1780092634000,-3292.48958,0.00012471,2]
[423414169,1780092634000,-5879.38267061,0.00012471,2]
[423414171,1780092634000,-2059.97389975,0.00012471,2]
[423414170,1780092634000,-4055.6,0.00012471,2]
[423414168,1780092634000,-3431.93207504,0.00012471,2]
[423414166,1780092634000,-2954.88412984,0.000124,2]
[423414173,1780092634000,-2234.67,0.00012471,2]
[423414165,1780092634000,-2880.21866115,0.000124,2]
[423414162,1780092634000,-500.0,0.00012399,2]
[423414164,1780092634000,-2873.04611123,0.000124,2]
[423414163,1780092634000,-2872.87572721,0.000124,2]
[423414161,1780092634000,-500.0,0.00012399,2]
[423414153,1780092634000,-500.0,0.00012399,2]
[423414150,1780092634000,-500.0,0.00012398,2]
[423414156,1780092634000,-500.0,0.00012399,2]
[423414158,1780092634000,-500.0,0.00012399,2]
[423414152,1780092634000,-500.0,0.00012399,2]
[423414157,1780092634000,-500.0,0.00012399,2]
[423414160,1780092634000,-500.0,0.00012399,2]
[423414159,1780092634000,-500.0,0.00012399,2]
[423414155,1780092634000,-500.0,0.00012399,2]
[423414189,1780092638000,-585.72089466,0.00012399,2]
[423414176,1780092638000,-497.26034125,0.00012399,2]
[423414177,1780092638000,-585.72089466,0.00012399,2]
[423414180,1780092638000,-585.72089466,0.00012399,2]
[423414179,1780092638000,-585.72089466,0.00012399,2]
[423414181,1780092638000,-585.72089466,0.00012399,2]
[423414182,1780092638000,-585.72089466,0.00012399,2]
[423414183,1780092638000,-585.72089466,0.00012399,2]
[423414178,1780092638000,-585.72089466,0.00012399,2]
[423414190,1780092638000,-585.72089466,0.00012399,2]
[423414184,1780092638000,-585.72089466,0.00012399,2]
[423414196,1780092638000,-618117.25248648,0.00012471,2]
[423414185,1780092638000,-585.72089466,0.00012399,2]
[423414187,1780092638000,-585.72089466,0.00012399,2]
[423414186,1780092638000,-585.72089466,0.00012399,2]
[423414191,1780092638000,-585.72089466,0.00012399,2]
[423414192,1780092638000,-585.72089466,0.00012399,2]
[423414193,1780092638000,-585.72089466,0.00012399,2]
[423414194,1780092638000,-585.72089466,0.00012399,2]
[423414195,1780092638000,-585.72089466,0.00012399,2]
[423414198,1780092638000,-4527.73206902,0.00012471,2]
[423414197,1780092638000,-455.2845583,0.00012471,2]
[423414188,1780092638000,-585.72089466,0.00012399,2]
[423414207,1780092646000,-500.0,0.00012398,2]
[423414208,1780092646000,-500.0,0.00012398,2]
[423414210,1780092646000,-210.27866087,0.00012399,2]
[423414211,1780092646000,-2744.90950085,0.00012471,2]
[423414209,1780092646000,-289.72133913,0.00012399,2]
[423414725,1780093098000,3571.88919171,0.00020471,120]
[423414735,1780093326000,192562.81038763,7.6e-05,2]
[423414737,1780093347000,276.0,0.00018792,120]
[423414738,1780093348000,276.0,0.00019732,120]
[423414878,1780093671000,40000.0,0.00020548,120]
[423414953,1780093832000,-300.0,9.928e-05,2]
[423414957,1780093832000,-300.0,9.928e-05,2]
[423414956,1780093832000,-300.0,9.928e-05,2]
[423414968,1780093832000,-185.29791665,0.00011359,2]
[423414958,1780093832000,-300.0,9.928e-05,2]
[423414959,1780093832000,-300.0,9.928e-05,2]
[423414961,1780093832000,-600.0,0.00010126,2]
[423414960,1780093832000,-300.0,9.928e-05,2]
[423414964,1780093832000,-420.0,0.00010708,2]
[423414963,1780093832000,-300.0,0.00010708,2]
[423414962,1780093832000,-1680.0,0.00010601,2]
[423414965,1780093832000,-720.0,0.00011138,2]
[423414966,1780093832000,-3002.4644879,0.00011215,2]
[423414970,1780093832000,-500.0,0.00011457,2]
[423414955,1780093832000,-300.0,9.928e-05,2]
[423414954,1780093832000,-300.0,9.928e-05,2]
[423414948,1780093832000,-300.0,9.928e-05,2]
[423414951,1780093832000,-300.0,9.928e-05,2]
[423414935,1780093832000,-274.24289103,9.542e-05,2]
[423414937,1780093832000,-1237.30973074,9.542e-05,2]
[423414938,1780093832000,-1071.458,9.542e-05,2]
[423414936,1780093832000,-799.71101828,9.542e-05,2]
[423414939,1780093832000,-1617.27835995,9.542e-05,2]
[423414940,1780093832000,-1200.0,9.637e-05,2]
[423414942,1780093832000,-300.0,9.734e-05,2]
[423414941,1780093832000,-5000.0,9.638e-05,2]
[423414944,1780093832000,-300.0,9.734e-05,2]
[423414943,1780093832000,-300.0,9.734e-05,2]
[423414949,1780093832000,-300.0,9.928e-05,2]
[423414946,1780093832000,-300.0,9.928e-05,2]
[423414945,1780093832000,-207.9998692,9.735e-05,2]
[423414947,1780093832000,-300.0,9.928e-05,2]
[423414950,1780093832000,-300.0,9.928e-05,2]
[423414952,1780093832000,-300.0,9.928e-05,2]
[423414977,1780093832000,-500.0,0.00011457,2]
[423414990,1780093832000,-500.0,0.00011458,2]
[423414969,1780093832000,-500.0,0.00011457,2]
[423414992,1780093832000,-348.08223887,0.00011458,2]
[423414994,1780093832000,-500.0,0.00011459,2]
[423414995,1780093832000,-500.0,0.00011459,2]
[423414997,1780093832000,-500.0,0.00011459,2]
[423414993,1780093832000,-500.0,0.00011459,2]
[423414998,1780093832000,-500.0,0.00011459,2]
[423414987,1780093832000,-500.0,0.00011458,2]
[423414996,1780093832000,-508.09,0.00011459,2]
[423415002,1780093832000,-500.0,0.00011459,2]
[423414999,1780093832000,-500.0,0.00011459,2]
[423415000,1780093832000,-500.0,0.00011459,2]
[423415003,1780093832000,-500.0,0.00011459,2]
[423414967,1780093832000,-3875.9733393,0.00011351,2]
[423415005,1780093832000,-500.0,0.00011459,2]
[423415001,1780093832000,-500.0,0.00011459,2]
[423414986,1780093832000,-500.0,0.00011458,2]
[423415004,1780093832000,-500.0,0.00011459,2]
[423414989,1780093832000,-502.52,0.00011458,2]
[423414985,1780093832000,-500.0,0.00011458,2]
[423414973,1780093832000,-500.0,0.00011457,2]
[423414974,1780093832000,-500.0,0.00011457,2]
[423414971,1780093832000,-500.0,0.00011457,2]
[423414975,1780093832000,-500.0,0.00011457,2]
[423414976,1780093832000,-500.0,0.00011457,2]
[423414978,1780093832000,-500.0,0.00011457,2]
[423414972,1780093832000,-669.27,0.00011457,2]
[423414979,1780093832000,-500.0,0.00011457,2]
[423414981,1780093832000,-500.0,0.00011457,2]
[423414991,1780093832000,-692.04,0.00011458,2]
[423414982,1780093832000,-413.40971594,0.00011457,2]
[423414983,1780093832000,-500.0,0.00011457,2]
[423414984,1780093832000,-441.1232346,0.00011457,2]
[423414980,1780093832000,-500.0,0.00011457,2]
[423414988,1780093832000,-500.0,0.00011458,2]
[423415063,1780093833000,-500.0,0.0001146,2]
[423415069,1780093833000,-500.0,0.0001146,2]
[423415062,1780093833000,-500.0,0.0001146,2]
[423415065,1780093833000,-500.0,0.0001146,2]
[423415067,1780093833000,-500.0,0.0001146,2]
[423415053,1780093833000,-500.0,0.0001146,2]
[423415058,1780093833000,-500.0,0.0001146,2]
[423415055,1780093833000,-500.0,0.0001146,2]
[423415042,1780093833000,-500.60166429,0.0001146,2]
[423415039,1780093833000,-500.51875377,0.0001146,2]
[423415036,1780093833000,-500.0,0.0001146,2]
[423415072,1780093833000,-500.0,0.0001146,2]
[423415060,1780093833000,-500.0,0.0001146,2]
[423415070,1780093833000,-500.0,0.0001146,2]
[423415089,1780093833000,-500.0,0.0001146,2]
[423415076,1780093833000,-500.0,0.0001146,2]
[423415077,1780093833000,-500.0,0.0001146,2]
[423415079,1780093833000,-500.0,0.0001146,2]
[423415090,1780093833000,-500.0,0.0001146,2]
[423415091,1780093833000,-698.5,0.0001146,2]
[423415094,1780093833000,-500.0,0.0001146,2]
[423415092,1780093833000,-500.0,0.0001146,2]
[423415093,1780093833000,-500.0,0.0001146,2]
[423415082,1780093833000,-632.50706103,0.0001146,2]
[423415084,1780093833000,-500.0,0.0001146,2]
[423415088,1780093833000,-500.0,0.0001146,2]
[423415081,1780093833000,-500.0,0.0001146,2]
[423415087,1780093833000,-500.0,0.0001146,2]